bitfinex-derivatives/quotes_BTCF0:USTF0_20250903
["timestamp","ask_amount","ask_price","bid_price","bid_amount"]
[1756890643680,0.13405837,111030.0,111020.0,1.59569]
[1756890646076,1.55465574,111030.0,111020.0,1.59569]
[1756890646283,1.60103574,111030.0,111020.0,0.43184]
[1756890648896,1.25039837,111030.0,111020.0,0.43184]
[1756890649092,1.60103574,111030.0,111020.0,0.43184]
[1756890651494,0.78107574,111030.0,111020.0,0.43184]
[1756890651692,1.60099574,111030.0,111020.0,0.43184]
[1756890659298,1.35099574,111030.0,111020.0,0.43184]
[1756890666997,1.35099574,111030.0,111020.0,0.39625]
[1756890667601,1.35099574,111030.0,111020.0,0.43241]
[1756890668805,1.35099574,111030.0,111020.0,0.39625]
[1756890669004,1.00035837,111030.0,111020.0,0.4304]
[1756890669204,1.00035837,111030.0,111020.0,0.39625]
[1756890669503,1.35099574,111030.0,111020.0,0.37485]
[1756890669904,1.35099574,111030.0,111020.0,0.37935]
[1756890670608,1.35099574,111030.0,111020.0,0.4019]
[1756890671408,1.35099574,111030.0,111020.0,0.43605]
[1756890677312,1.35099574,111030.0,111020.0,0.4019]
[1756890677913,1.00027837,111030.0,111020.0,0.43605]
[1756890678108,1.35091574,111030.0,111020.0,0.43605]
[1756890681020,1.35091574,111030.0,111020.0,0.08605]
[1756890682717,1.00027837,111030.0,111020.0,0.08605]
[1756890683015,1.35091574,111030.0,111020.0,0.08605]
[1756890684818,1.00027837,111030.0,111020.0,0.08605]
[1756890685021,1.35091574,111030.0,111020.0,0.08605]
[1756890688422,1.35091574,111030.0,111020.0,0.0519]
[1756890690424,0.18043837,111030.0,111020.0,0.43668737]
[1756890690618,0.07224863,111030.0,111020.0,1.03668737]
[1756890691125,0.10614863,111030.0,111020.0,1.03668737]
[1756890691926,0.10614863,111030.0,111020.0,0.33605]
[1756890692122,0.10613871,111030.0,111020.0,0.1519]
[1756890692316,0.10613871,111030.0,111020.0,0.18605]
[1756890693130,0.10613871,111030.0,111020.0,0.08605]
[1756890693318,0.10613871,111030.0,111020.0,0.43605]
[1756890693515,0.08328,111030.0,111020.0,0.43605]
[1756890693919,0.08328,111030.0,111020.0,0.78668737]
[1756890694523,0.08328,111030.0,111020.0,0.43605]
[1756890694924,0.08328,111030.0,111020.0,0.78668737]
[1756890695225,0.08328,111030.0,111020.0,0.43668737]
[1756890695627,0.80096,111030.0,111020.0,0.08605]
[1756890695827,0.80096,111030.0,111020.0,0.43668737]
[1756890696330,0.80096,111030.0,111020.0,0.08605]
[1756890696725,0.80096,111030.0,111020.0,0.09605]
[1756890697327,1.22370038,111030.0,111020.0,0.09605]
[1756890697528,1.13607114,111030.0,111020.0,0.35905813]
[1756890697728,1.15891672,111030.0,111020.0,0.35905813]
[1756890697929,1.13607114,111030.0,111020.0,0.35905813]
[1756890698222,1.13607114,111030.0,111020.0,0.32490813]
[1756890698630,1.13607114,111030.0,111020.0,0.36133813]
[1756890699124,1.13607114,111030.0,111020.0,0.0619]
[1756890699326,1.13607114,111030.0,111020.0,0.32490813]
[1756890700329,1.13607114,111030.0,111020.0,0.36133813]
[1756890700825,1.15891631,111030.0,111020.0,0.0519]
[1756890701026,1.15891631,111030.0,111020.0,0.0046]
[1756890702727,2.01192444,111030.0,111020.0,0.0046]
[1756890704132,1.75192444,111030.0,111020.0,0.0046]
[1756890704431,1.51439631,111030.0,111020.0,0.0526]
[1756890704619,1.82439631,111030.0,111020.0,0.0046]
[1756890704818,1.51439631,111030.0,111020.0,0.0046]
[1756890705020,1.25138818,111030.0,111020.0,0.0046]
[1756890705229,1.89439631,111030.0,111000.0,1.47300813]
[1756890705530,0.03408,111010.0,111000.0,1.76300813]
[1756890705730,0.85724,111010.0,111000.0,1.76300813]
[1756890705930,1.12024813,111010.0,111000.0,1.76300813]
[1756890706532,0.85724,111010.0,111000.0,1.77218419]
[1756890707032,1.12024813,111010.0,111000.0,1.77218419]
[1756890707235,1.12024813,111010.0,111000.0,1.80861419]
[1756890707427,1.12024813,111010.0,111000.0,1.54660606]
[1756890707629,1.12024813,111010.0,111000.0,1.80043813]
[1756890707932,0.85724,111010.0,111000.0,1.80043813]
[1756890708231,1.12024813,111010.0,111000.0,1.80043813]
[1756890708431,1.12024813,111010.0,111000.0,1.80143813]
[1756890708630,1.12124813,111010.0,111000.0,1.80043813]
[1756890708833,1.12324813,111010.0,111000.0,1.79943813]
[1756890709628,0.03708,111010.0,111000.0,1.79943813]
[1756890709830,1.12624813,111010.0,111000.0,1.53643]
[1756890710130,1.12624813,111010.0,111000.0,1.79943813]
[1756890711024,1.12624813,111010.0,111000.0,1.53643]
[1756890711229,1.17345813,111010.0,111000.0,0.37443]
[1756890711430,1.17345813,111010.0,111000.0,0.338]
[1756890712026,1.17345813,111010.0,111000.0,0.37443]
[1756890713637,0.91045,111010.0,111000.0,0.37443]
[1756890713939,1.17345813,111010.0,111000.0,0.63743813]
[1756890715636,0.91045,111010.0,111000.0,0.63743813]
[1756890715837,1.17345813,111010.0,111000.0,0.63743813]
[1756890716530,1.17305813,111010.0,111000.0,0.63743813]
[1756890716835,0.34729813,111010.0,111000.0,0.63743813]
[1756890717029,1.17293813,111010.0,111000.0,0.63743813]
[1756890720037,0.90993,111010.0,111000.0,0.63743813]
[1756890720237,1.17293813,111010.0,111000.0,0.63743813]
[1756890722239,0.34729813,111010.0,111000.0,0.63743813]
[1756890722438,1.17293813,111010.0,111000.0,0.63743813]
[1756890722939,0.34729813,111010.0,111000.0,0.63743813]
[1756890723335,1.17309813,111010.0,111000.0,0.63743813]
[1756890726238,1.19605167,111010.0,111000.0,0.37443]
[1756890726434,1.19605167,111010.0,111000.0,0.63743813]
[1756890727040,1.19605167,111010.0,111000.0,0.37443]
[1756890727343,1.19605167,111010.0,111000.0,0.63743813]
[1756890730846,0.37025167,111010.0,111000.0,0.63743813]
[1756890731146,1.19517167,111010.0,111000.0,0.63743813]
[1756890732345,0.93216354,111010.0,111000.0,0.63743813]
[1756890732546,1.19517167,111010.0,111000.0,0.63743813]
[1756890736441,1.19517167,111010.0,111000.0,0.37443]
[1756890736646,1.19517167,111010.0,111000.0,0.63743813]
[1756890739243,0.93216354,111010.0,111000.0,0.63743813]
[1756890739447,1.19517167,111010.0,111000.0,0.63743813]
[1756890741147,1.52517167,111010.0,111000.0,0.29]
[1756890741452,1.19517167,111010.0,111000.0,0.29]
[1756890748052,1.19517167,111010.0,111000.0,0.18121]
[1756890748256,1.19517167,111010.0,110990.0,0.04016]
[1756890748257,0.93216354,111010.0,110990.0,0.04016]
[1756890748473,0.52601626,111000.0,110990.0,0.36572]
[1756890748646,0.28596167,111000.0,110990.0,0.36562]
[1756890748949,0.28596167,111000.0,110990.0,0.62862813]
[1756890749154,1.12688167,111000.0,110990.0,0.62862813]
[1756890750156,1.12688167,111000.0,110990.0,0.36562]
[1756890750357,1.12688167,111000.0,110990.0,0.62862813]
[1756890751059,1.12688167,111000.0,110990.0,0.36562]
[1756890751259,1.12688167,111000.0,110990.0,0.62862813]
[1756890752461,1.12788167,111000.0,110990.0,0.36562]
[1756890752960,1.12988167,111000.0,110990.0,0.36562]
[1756890754162,0.86687354,111000.0,110990.0,0.36562]
[1756890754360,1.12988167,111000.0,110990.0,0.36562]
[1756890755059,0.86687354,111000.0,110990.0,0.36562]
[1756890755258,1.12988167,111000.0,110990.0,0.36562]
[1756890755865,0.86687354,111000.0,110990.0,0.36562]
[1756890756363,1.12988167,111000.0,110990.0,0.36562]
[1756890756661,1.12988167,111000.0,110990.0,0.62862813]
[1756890756862,0.86687354,111000.0,110990.0,0.62862813]
[1756890757058,1.12988167,111000.0,110990.0,0.62862813]
[1756890757466,0.86687354,111000.0,110990.0,0.36562]
[1756890758159,0.02595354,111000.0,110990.0,0.36562]
[1756890758361,0.02595354,111000.0,110990.0,0.71647941]
[1756890758556,0.86511354,111000.0,110990.0,0.71647941]
[1756890759263,0.86513299,111000.0,110990.0,0.71647941]
[1756890759458,0.86513299,111000.0,110990.0,0.71197941]
[1756890760461,0.86521299,111000.0,110990.0,0.71197941]
[1756890760850,0.86521299,111000.0,110990.0,0.71647941]
[1756890762466,0.02597299,111000.0,110990.0,0.71647941]
[1756890762665,0.86529299,111000.0,110990.0,0.71647941]
[1756890763775,0.86529299,111000.0,110990.0,0.36562]
[1756890764072,0.86529299,111000.0,110990.0,0.71647941]
[1756890764260,0.86541299,111000.0,110990.0,0.71647941]
[1756890764460,0.84244,111000.0,110990.0,0.71647941]
[1756890765872,0.86542102,111000.0,110990.0,0.71647941]
[1756890771677,0.02598102,111000.0,110990.0,0.71647941]
[1756890771880,0.003,111000.0,110990.0,0.96647941]
[1756890772082,0.003,111000.0,110990.0,1.05656901]
[1756890773182,0.002,111000.0,110990.0,1.40742842]
[1756890773481,0.07220301,111030.0,110990.0,1.40742842]
[1756890773482,0.07220301,111030.0,111020.0,0.08249]
[1756890773689,0.14522785,111030.0,111020.0,0.08249]
[1756890773993,0.98410785,111030.0,111020.0,0.08249]
[1756890774286,0.93410785,111030.0,111020.0,0.08249]
[1756890775088,0.93710785,111030.0,111020.0,0.08249]
[1756890775480,0.94110785,111030.0,111020.0,0.08249]
[1756890775682,0.10222785,111030.0,111020.0,0.08249]
[1756890775982,0.94062785,111030.0,111020.0,0.08249]
[1756890777991,0.94062785,111030.0,111020.0,0.04744]
[1756890778490,0.10222785,111030.0,111020.0,0.04744]
[1756890778692,0.93998785,111030.0,111020.0,0.04744]
[1756890778992,0.10222785,111030.0,111020.0,0.04744]
[1756890779292,0.93986785,111030.0,111020.0,0.04744]
[1756890779492,0.93984094,111030.0,111020.0,0.04744]
[1756890780291,0.93984094,111030.0,111020.0,0.08249]
[1756890781191,0.93936094,111030.0,111020.0,0.08249]
[1756890782288,0.03009793,111030.0,111020.0,0.77334941]
[1756890782594,0.0071,111030.0,111020.0,1.02334941]
[1756890784090,0.0071,111030.0,111020.0,1.02784941]
[1756890784695,0.0071,111030.0,111020.0,0.67699]
[1756890784895,0.0071,111030.0,111020.0,1.02784941]
[1756890794400,0.0071,111030.0,111020.0,1.29164941]
[1756890802298,0.03006446,111030.0,111020.0,1.29164941]
[1756890802500,0.0071,111030.0,111020.0,1.04164941]
[1756890802699,0.0071,111030.0,111020.0,1.11791461]
[1756890802900,0.0071,111030.0,111020.0,1.95155461]
[1756890803303,0.0051,111030.0,111020.0,1.95155461]
[1756890803803,0.0031,111030.0,111020.0,1.95155461]
[1756890806712,0.0031,111030.0,111020.0,1.86096941]
[1756890807212,0.0031,111030.0,111020.0,1.02784941]
[1756890807414,0.0031,111030.0,111020.0,1.86088941]
[1756890810215,0.0031,111030.0,111020.0,1.02784941]
[1756890810414,0.0031,111030.0,111020.0,1.86072941]
[1756890810713,0.0031,111030.0,111020.0,1.86052941]
[1756890812217,0.0031,111030.0,111020.0,2.12432941]
[1756890813214,0.0031,111030.0,111020.0,1.29164941]
[1756890813414,0.0031,111030.0,111020.0,2.12392941]
[1756890814216,0.0031,111030.0,111020.0,3.33392941]
[1756890814617,0.0031,111030.0,111020.0,2.50164941]
[1756890814818,0.0031,111030.0,111020.0,3.33376941]
[1756890815013,0.0031,111030.0,111020.0,2.73259]
[1756890815314,0.2531,111030.0,111020.0,1.90079]
[1756890815519,0.27605966,111030.0,111020.0,0.69079]
[1756890816210,0.27695966,111030.0,111020.0,0.69079]
[1756890817917,0.27695966,111030.0,111020.0,0.42699]
[1756890818725,0.62781907,111030.0,111020.0,0.39194]
[1756890818923,0.62781907,111030.0,111020.0,0.42857]
[1756890819427,0.53999719,111030.0,111020.0,0.42857]
[1756890821128,0.53999719,111030.0,111020.0,0.39194]
[1756890821719,0.53999719,111030.0,111020.0,0.42857]
[1756890824026,0.53999719,111030.0,111020.0,0.69160753]
[1756890824229,1.44618589,111030.0,111020.0,0.69160753]
[1756890825523,1.44618589,111030.0,111020.0,0.42857]
[1756890828231,1.44618589,111030.0,111020.0,0.20857]
[1756890829231,1.44618589,111030.0,111020.0,0.17194]
[1756890829431,1.79618589,111030.0,111020.0,0.0045]
[1756890829624,2.05922342,111030.0,111020.0,0.0045]
[1756890830531,1.74922342,111030.0,111020.0,0.0045]
[1756890830730,2.05922342,111030.0,111020.0,0.0045]
[1756890830930,1.79618589,111030.0,111020.0,0.0045]
[1756890833536,2.05922342,111030.0,111020.0,0.0045]
[1756890835037,1.74922342,111030.0,111020.0,0.0045]
[1756890835238,2.06922342,111030.0,111020.0,0.0045]
[1756890839240,1.81922342,111030.0,111020.0,0.0045]
[1756890839842,1.50922342,111030.0,111020.0,0.0045]
[1756890840140,1.80922342,111030.0,111020.0,0.0045]
[1756890841441,0.97682342,111030.0,111020.0,0.0045]
[1756890841633,1.80666342,111030.0,111020.0,0.0045]
[1756890842040,0.95038836,111030.0,111020.0,0.05211]
[1756890842341,0.95094836,111030.0,111020.0,0.08874]
[1756890842638,0.38378589,111030.0,111020.0,0.08874]
[1756890842843,1.21406589,111030.0,111020.0,0.08874]
[1756890843543,0.38378589,111030.0,111020.0,0.35177753]
[1756890843745,1.21406589,111030.0,111020.0,0.35177753]
[1756890843947,1.21406589,111030.0,111020.0,0.08874]
[1756890844444,1.19406589,111030.0,111020.0,0.08874]
[1756890845147,0.36378589,111030.0,111020.0,0.08874]
[1756890845349,1.19402589,111030.0,111020.0,0.05211]
[1756890846140,1.19602589,111030.0,111020.0,0.05211]
[1756890846546,1.19802589,111030.0,111020.0,0.05211]
[1756890850046,1.19802589,111030.0,111020.0,0.0045]
[1756890850248,1.48106342,111030.0,111020.0,0.0045]
[1756890850449,1.78106342,111030.0,111020.0,0.0045]
[1756890850656,2.0894191,111030.0,111020.0,0.0045]
[1756890853655,1.8394191,111030.0,111020.0,0.0045]
[1756890853845,2.1394191,111030.0,111020.0,0.0045]
[1756890863657,2.15567677,111030.0,111020.0,0.0045]
[1756890866163,1.84567677,111030.0,111020.0,0.0045]
[1756890866362,2.13567677,111030.0,111020.0,0.0045]
[1756890869960,1.88567677,111030.0,111020.0,0.0045]
[1756890870168,2.38253197,111030.0,111010.0,0.0001]
[1756890870368,0.78911259,111020.0,111010.0,0.0001]
[1756890870566,0.78911259,111020.0,111000.0,0.0599]
[1756890870567,1.17207225,111020.0,111000.0,0.0599]
[1756890870766,1.35343506,111010.0,111000.0,0.0599]
[1756890871068,1.68639472,111010.0,111000.0,0.0598]
[1756890872673,1.68739472,111010.0,111000.0,0.0598]
[1756890872968,1.20350123,111010.0,111000.0,0.0598]
[1756890873173,1.20322123,111010.0,111000.0,0.09559]
[1756890873373,1.20422123,111010.0,111000.0,0.0598]
[1756890873572,1.20422123,111010.0,111000.0,0.01443]
[1756890873769,1.46725876,111010.0,111000.0,0.0598]
[1756890873969,1.46625876,111010.0,111000.0,0.0598]
[1756890874176,1.47025876,111010.0,111000.0,0.09559]
[1756890874574,1.20722123,111010.0,111000.0,0.09559]
[1756890874774,1.20922123,111010.0,111000.0,0.09559]
[1756890878475,1.47225876,111010.0,111000.0,0.09559]
[1756890881278,1.70225876,111010.0,111000.0,0.09559]
[1756890881477,1.52709857,111010.0,111000.0,0.09559]
[1756890882079,1.52601857,111010.0,111000.0,0.09559]
[1756890882379,1.55601857,111010.0,111000.0,0.09559]
[1756890884576,1.55609857,111010.0,111000.0,0.09559]
[1756890886781,0.73001857,111010.0,111000.0,0.09559]
[1756890886981,1.55577857,111010.0,111000.0,0.09559]
[1756890888981,0.73001857,111010.0,111000.0,0.09559]
[1756890889184,1.55553857,111010.0,111000.0,0.09559]
[1756890889777,1.55549857,111010.0,111000.0,0.09559]
[1756890889978,0.73001857,111010.0,111000.0,0.09559]
[1756890890279,1.55541857,111010.0,111000.0,0.09559]
[1756890891885,1.55537857,111010.0,111000.0,0.09559]
[1756890894089,0.73001857,111010.0,111000.0,0.09559]
[1756890894285,1.55537857,111010.0,111000.0,0.09559]
[1756890895796,0.73001857,111010.0,111000.0,0.09559]
[1756890896089,1.55537857,111010.0,111000.0,0.09559]
[1756890898189,1.60380959,111010.0,111000.0,0.09559]
[1756890898496,1.60380959,111010.0,111000.0,0.0598]
[1756890898791,1.60380959,111010.0,111000.0,0.09706]
[1756890899186,0.77844959,111010.0,111000.0,0.09706]
[1756890899386,1.62380959,111010.0,111000.0,0.09706]
[1756890900391,1.58380959,111010.0,111000.0,0.09706]
[1756890900989,1.56084993,111010.0,111000.0,0.0598]
[1756890901194,1.58390314,111010.0,111000.0,0.0598]
[1756890902488,1.26390314,111010.0,111000.0,0.09706]
[1756890902694,0.91298827,111010.0,111000.0,0.09706]
[1756890903193,1.63390314,111010.0,111000.0,0.09706]
[1756890904095,0.80854314,111010.0,111000.0,0.09706]
[1756890904296,1.63390314,111010.0,111000.0,0.09706]
[1756890905093,1.28298827,111010.0,111000.0,0.09706]
[1756890905298,1.64390314,111010.0,111000.0,0.09706]
[1756890905698,1.57390314,111010.0,111000.0,0.09706]
[1756890906299,0.74854314,111010.0,111000.0,0.09706]
[1756890906598,1.57390314,111010.0,111000.0,0.09706]
[1756890908901,0.39762827,111010.0,111000.0,0.09706]
[1756890909096,0.91294827,111010.0,111000.0,0.09706]
[1756890909600,0.07848423,111010.0,111000.0,0.69797487]
[1756890909805,0.03005321,111010.0,111000.0,0.69797487]
[1756890910007,0.85537321,111010.0,111000.0,0.69797487]
[1756890911604,0.03005321,111010.0,111000.0,0.69797487]
[1756890911808,0.85537321,111010.0,111000.0,0.69797487]
[1756890912708,0.85137321,111010.0,111000.0,0.69797487]
[1756890912907,0.85237321,111010.0,111000.0,0.69797487]
[1756890913106,0.02405321,111010.0,111000.0,0.69797487]
[1756890913308,0.84933321,111010.0,111000.0,0.69797487]
[1756890913611,0.84933321,111010.0,111000.0,0.34706]
[1756890913908,0.85033321,111010.0,111000.0,0.34706]
[1756890919911,0.85033321,111010.0,111000.0,0.69797487]
[1756890922516,0.02505321,111010.0,111000.0,0.69797487]
[1756890923117,0.02505321,111010.0,111000.0,1.02797487]
[1756890923416,0.02505321,111010.0,111000.0,1.37888974]
[1756890923618,0.002,111010.0,111000.0,1.02797487]
[1756890926316,0.002,111010.0,111000.0,1.37888974]
[1756890927317,0.001,111010.0,111000.0,1.46897004]
[1756890928421,0.001,111030.0,111000.0,2.25683004]
[1756890928718,0.001,111030.0,111020.0,0.43377487]
[1756890928913,0.001,111030.0,111020.0,0.76377487]
[1756890929619,0.001,111030.0,111020.0,0.77297393]
[1756890930422,0.002,111030.0,111020.0,0.77297393]
[1756890930724,0.002,111030.0,111020.0,0.81297393]
[1756890931121,0.002,111030.0,111020.0,0.09205906]
[1756890931321,0.002,111030.0,111020.0,0.44297393]
[1756890933721,0.002,111030.0,111020.0,0.70677393]
[1756890935924,0.002,111030.0,111020.0,0.35585906]
[1756890936116,0.002,111030.0,111020.0,0.70677393]
[1756890938022,0.002,111030.0,111020.0,0.35585906]
[1756890938223,0.002,111030.0,111020.0,0.70677393]
[1756890940022,0.002,111030.0,111020.0,1.06677393]
[1756890941024,0.002,111030.0,111020.0,1.40683803]
[1756890941527,0.002,111030.0,111020.0,1.7544474]
[1756890941727,0.02505669,111030.0,111020.0,2.5793274]
[1756890942022,0.02505669,111030.0,111020.0,1.7544474]
[1756890943025,0.02505669,111030.0,111020.0,1.49158462]
[1756890943323,0.02505669,111030.0,111020.0,1.7544474]
[1756890944024,0.02505669,111030.0,111020.0,1.49158462]
[1756890945522,0.02505669,111030.0,111020.0,1.4906474]
[1756890951435,0.02505669,111030.0,111020.0,1.7544474]
[1756890952836,0.02505669,111030.0,111020.0,1.8445113]
[1756890959339,0.02505669,111030.0,111020.0,1.5945113]
[1756890959944,0.02505669,111030.0,111020.0,1.8626117]
[1756890960739,0.02505669,111030.0,111020.0,2.6871717]
[1756890962341,0.002,111030.0,111020.0,2.6871717]
[1756890963547,0.002,111030.0,111020.0,2.68737607]
[1756890969649,0.002,111030.0,111020.0,3.89737607]
[1756890970752,0.002,111030.0,111020.0,3.89717607]
[1756890971851,0.002,111030.0,111020.0,3.07281607]
[1756890972150,0.002,111030.0,111020.0,3.89717607]
[1756890985656,0.0001,111070.0,111060.0,0.08489]
[1756890985854,0.01445,111090.0,111070.0,0.1258901]
[1756890986052,0.01445,111090.0,111080.0,0.87347834]
[1756890986053,0.03756564,111090.0,111080.0,0.87347834]
[1756890986259,0.01445,111090.0,111080.0,2.08347834]
[1756890986657,0.01445,111090.0,111080.0,2.42347834]
[1756890987361,0.02245,111090.0,111080.0,2.42347834]
[1756890987964,0.02245,111090.0,111080.0,2.44151879]
[1756890988354,0.02345,111090.0,111080.0,2.44151879]
[1756890989573,0.02345,111090.0,111080.0,2.45069601]
[1756890989973,0.01645,111090.0,111080.0,2.45069601]
[1756890990478,0.01645,111090.0,111080.0,3.27465601]
[1756890991170,0.01645,111090.0,111080.0,2.45069601]
[1756890991374,0.01645,111090.0,111080.0,3.27461601]
[1756890992982,0.01645,111090.0,111080.0,3.53841601]
[1756890996674,0.01645,111090.0,111080.0,2.71449601]
[1756890996981,0.01645,111090.0,111080.0,3.53825601]
[1756890999271,0.01645,111090.0,111080.0,3.87827081]
[1756890999585,2.20178,111130.0,111110.0,0.08241]
[1756890999879,2.56466067,111130.0,111120.0,0.28586278]
[1756891000079,2.61309169,111130.0,111120.0,0.28586278]
[1756891000283,2.87595447,111130.0,111120.0,0.28586278]
[1756891000470,2.88504473,111130.0,111120.0,0.28586278]
[1756891001985,2.88504009,111130.0,111120.0,0.28586278]
[1756891002279,2.88504009,111130.0,111120.0,0.26286278]
[1756891002682,2.88704009,111130.0,111120.0,0.26286278]
[1756891003283,2.88904009,111130.0,111120.0,0.26286278]
[1756891003479,2.62617731,111130.0,111110.0,0.43205309]
[1756891003782,0.04843102,111120.0,111110.0,0.43205309]
[1756891004185,0.07140705,111120.0,111110.0,0.43205309]
[1756891004375,0.89492705,111120.0,111110.0,0.43205309]
[1756891006982,0.07340705,111120.0,111100.0,0.4649656]
[1756891007179,0.89798705,111120.0,111100.0,0.4649656]
[1756891007585,0.89798705,111120.0,111110.0,0.03462]
[1756891007792,0.89788705,111120.0,111110.0,0.08198]
[1756891007981,0.89788705,111120.0,111110.0,0.43205309]
[1756891009094,0.89788705,111120.0,111110.0,0.08198]
[1756891009393,0.89588705,111120.0,111110.0,0.08198]
[1756891009990,0.89688705,111120.0,111110.0,0.08198]
[1756891010891,0.89788705,111120.0,111110.0,0.08198]
[1756891012285,0.84945603,111120.0,111110.0,0.08198]
[1756891013293,1.83414247,111120.0,111100.0,0.06183]
[1756891013495,0.04835616,111110.0,111100.0,0.06183]
[1756891013696,1.19962912,111120.0,111100.0,0.09645]
[1756891013890,1.19962912,111120.0,111100.0,0.44652309]
[1756891014291,1.24798528,111120.0,111100.0,0.44652309]
[1756891014699,1.24698528,111120.0,111100.0,0.44652309]
[1756891014993,0.89691219,111120.0,111100.0,0.44652309]
[1756891015195,1.24698528,111120.0,111100.0,0.44652309]
[1756891015895,1.24498528,111120.0,111100.0,0.44652309]
[1756891017597,0.89491219,111120.0,111100.0,0.44652309]
[1756891017894,1.24498528,111120.0,111100.0,0.44652309]
[1756891018097,0.89491219,111120.0,111100.0,0.44652309]
[1756891018596,1.24498528,111120.0,111100.0,0.44652309]
[1756891020697,0.89491219,111120.0,111100.0,0.44652309]
[1756891020898,0.07143219,111120.0,111100.0,0.44652309]
[1756891021194,0.04845616,111120.0,111110.0,0.43205309]
[1756891021399,0.07133219,111120.0,111110.0,0.74205309]
[1756891021697,0.02297603,111120.0,111110.0,0.74205309]
[1756891021893,0.87161616,111130.0,111120.0,0.08198]
[1756891022088,0.84626451,111130.0,111120.0,0.43205309]
[1756891022289,0.02310451,111130.0,111120.0,0.68205309]
[1756891022593,0.84626451,111130.0,111120.0,0.68205309]
[1756891024097,0.84926451,111130.0,111120.0,0.68205309]
[1756891025193,0.85126451,111130.0,111120.0,0.68205309]
[1756891026699,0.02810451,111130.0,111120.0,0.68205309]
[1756891026998,0.85118451,111130.0,111120.0,0.68205309]
[1756891029695,0.02810451,111130.0,111120.0,0.68205309]
[1756891029902,0.02810451,111130.0,111120.0,1.37212618]
[1756891030293,0.005,111130.0,111120.0,1.37212618]
[1756891031302,0.005,111130.0,111120.0,1.46210878]
[1756891033793,0.005,111130.0,111120.0,2.28498878]
[1756891034293,0.001,111150.0,111140.0,0.0829]
[1756891034495,0.001,111150.0,111140.0,1.58367647]
[1756891034701,0.02404576,111150.0,111140.0,1.58367647]
[1756891035198,0.001,111150.0,111140.0,1.58367647]
[1756891035705,0.001,111150.0,111140.0,1.59261599]
[1756891036306,0.001,111150.0,111140.0,1.59257599]
[1756891036603,0.004,111150.0,111140.0,1.59257599]
[1756891036899,0.007,111150.0,111140.0,1.59257599]
[1756891038504,0.007,111150.0,111140.0,1.66315377]
[1756891040305,0.007,111150.0,111140.0,1.66307377]
[1756891042612,0.007,111150.0,111140.0,0.84035377]
[1756891042906,0.007,111150.0,111140.0,1.66303377]
[1756891043405,0.007,111150.0,111140.0,0.84035377]
[1756891043609,0.007,111150.0,111140.0,1.66303377]
[1756891049413,0.007,111150.0,111140.0,1.92683377]
[1756891054920,0.007,111150.0,111140.0,1.10415377]
[1756891055216,0.0071,111150.0,111140.0,1.92667377]
[1756891055417,0.007,111150.0,111140.0,1.92667377]
[1756891056513,0.03007193,111150.0,111140.0,1.92667377]
[1756891057311,0.03017193,111150.0,111140.0,1.92667377]
[1756891057811,0.03007193,111150.0,111140.0,1.92667377]
[1756891058417,0.03007193,111150.0,111140.0,1.66287377]
[1756891059014,0.007,111150.0,111140.0,1.66287377]
[1756891059216,0.0001,111160.0,111150.0,0.0149]
[1756891059415,0.0001,111170.0,111150.0,1.31587044]
[1756891059718,0.0001,111170.0,111160.0,1.58987992]
[1756891059919,0.0002,111180.0,111160.0,1.54980683]
[1756891060113,0.02362704,111180.0,111170.0,0.43680309]
[1756891060317,0.27352704,111180.0,111170.0,0.43680309]
[1756891060520,0.02352704,111180.0,111170.0,0.43680309]
[1756891061215,0.0718832,111180.0,111170.0,0.43680309]
[1756891061520,0.3218832,111180.0,111170.0,0.43680309]
[1756891061723,0.3258832,111180.0,111170.0,0.43680309]
[1756891062412,0.3288832,111180.0,111170.0,0.43680309]
[1756891063724,0.28052704,111180.0,111170.0,0.08673]
[1756891063918,0.27852704,111180.0,111170.0,0.04931]
[1756891064625,0.27552704,111180.0,111170.0,0.08673]
[1756891065429,0.53783271,111180.0,111170.0,0.34903567]
[1756891067025,0.27552704,111180.0,111170.0,0.34903567]
[1756891067435,0.27552704,111180.0,111170.0,0.08673]
[1756891067634,0.27552704,111180.0,111170.0,0.34903567]
[1756891074043,0.2755536,111180.0,111170.0,0.34903567]
[1756891075238,0.2755536,111180.0,111170.0,0.08673]
[1756891075440,0.2755536,111180.0,111170.0,0.34903567]
[1756891076943,0.0251336,111180.0,111170.0,1.20134134]
[1756891077138,0.0251336,111180.0,111170.0,2.02362134]
[1756891077642,0.0251336,111180.0,111170.0,1.20134134]
[1756891077938,0.0251336,111180.0,111170.0,2.02362134]
[1756891078346,0.002,111180.0,111170.0,2.02362134]
[1756891078845,0.001,111180.0,111170.0,2.02362134]
[1756891079032,0.0001,111190.0,111180.0,0.08544]
[1756891079236,0.0011,111200.0,111180.0,0.89263134]
[1756891079443,0.00142,111200.0,111190.0,0.34774567]
[1756891079646,0.02452589,111200.0,111190.0,0.34774567]
[1756891080038,0.02410589,111200.0,111190.0,0.93005134]
[1756891080441,0.02510589,111200.0,111190.0,0.93005134]
[1756891080642,0.02510589,111200.0,111190.0,0.93903189]
[1756891082148,0.02710589,111200.0,111190.0,0.93903189]
[1756891082448,0.006,111200.0,111190.0,1.76123189]
[1756891083042,0.003,111200.0,111190.0,1.76123189]
[1756891083756,0.02607614,111200.0,111190.0,1.76123189]
[1756891084439,0.02606974,111200.0,111190.0,1.76123189]
[1756891085036,0.003,111200.0,111190.0,1.76123189]
[1756891085649,0.003,111200.0,111190.0,1.77967902]
[1756891086848,0.003,111200.0,111190.0,1.86960572]
[1756891087153,0.003,111200.0,111190.0,2.11960572]
[1756891088253,0.003,111200.0,111190.0,2.38191139]
[1756891089455,0.002,111200.0,111190.0,2.38191139]
[1756891089651,0.002,111200.0,111190.0,2.29198469]
[1756891089956,0.001,111200.0,111190.0,2.29298469]
[1756891090356,0.001,111200.0,111190.0,2.03067902]
[1756891090651,0.001,111200.0,111190.0,2.03051902]
[1756891094551,0.001,111200.0,111190.0,2.12044572]
[1756891094755,0.001,111200.0,111190.0,2.38267139]
[1756891095653,0.001,111200.0,111190.0,1.47078469]
[1756891095845,0.001,111200.0,111190.0,2.27429756]
[1756891096051,0.001,111200.0,111190.0,2.29268427]
[1756891096250,0.001,111200.0,111190.0,2.0303786]
[1756891097449,0.001,111200.0,111190.0,2.29268427]
[1756891097656,0.001,111200.0,111190.0,0.9584186]
[1756891097960,0.001,111200.0,111190.0,1.7803386]
[1756891098252,0.02399847,111200.0,111190.0,1.7803386]
[1756891098755,0.02399847,111200.0,111190.0,0.9584186]